Cogmind - Beta 14 @@@ ROGUE MODE // 2024.09.02 @ 14:02:35 Player: Rzcen Result: Destroyed by G-34 Mercenary with Small Laser Performance ------------- Evolutions (0) 0 Regions Visited (2) 400 Robots Destroyed (19) 95 Value Destroyed (531) 531 Prototype IDs (2) 40 Alien Tech Used (0) 0 Bonus (0) 0 TOTAL SCORE: 1066 Bonus ------- None Cogmind --------- Core Integrity 0/250 Matter 46/300 Energy 100/100 System Corruption 1% Temperature Cool (6) Movement Walking (190) Ox1 Location -10/Mines Parts ------- > --- POWER (1) -------- (None) > --- PROPULSION (2) --- Aluminum Leg Aluminum Leg > --- UTILITY (2) ------ Large Storage Unit Structural Scanner > --- WEAPON (2) ------- Assault Rifle Assault Rifle > --- INVENTORY (15) --- Aluminum Leg Aluminum Leg Improved Heat Sink Propulsion Shielding Light Armor Plating EM Pulse Gun Assault Rifle Grenade Launcher Rocket Launcher Datajack Peak State ------------ > --- POWER ------------ Light Nuclear Core > --- PROPULSION ------- Light Treads Light Treads > --- UTILITY ---------- Small Storage Unit Structural Scanner > --- WEAPON ----------- Assault Rifle Assault Rifle > --- INVENTORY -------- Improved Heat Sink Propulsion Shielding Light Armor Plating EM Pulse Gun Grenade Launcher Grenade Launcher Datajack [Rating: 9] Favorites ----------- Power Ion Engine Engine Ion Engine Power Core Light Nuclear Core Propulsion Aluminum Leg Treads Light Treads Leg Aluminum Leg Utility Structural Scanner Device Structural Scanner Storage Large Storage Unit Weapon Assault Rifle Ballistic Gun Assault Rifle Launcher Grenade Launcher Special Weapon Mining Laser Special Melee Weapon Datajack Build | -11 -10 -10 ------- Run | Yrd Mat Min Slots Evolved . | . . . Power . | . . . Propulsion . | . . . Utility . | . . . Weapon . | . . . Parts Attached 26 | 7 17 2 Power 3 | 2 1 . Engine 2 | 2 . . Core 1 | . 1 . Reactor . | . . . Propulsion 7 | 2 5 . Treads 2 | 2 . . Leg 5 | . 5 . Wheel . | . . . Hover . | . . . Flight . | . . . Utility 3 | 1 2 . Device 1 | . 1 . Storage 2 | 1 1 . Processor . | . . . Hackware . | . . . Protection . | . . . Artifact . | . . . Weapon 13 | 2 9 2 Energy Gun . | . . . Energy Cannon . | . . . Ballistic Gun 8 | 2 4 2 Ballistic Cannon . | . . . Launcher 2 | . 2 . Special Weapon 2 | . 2 . Impact Weapon . | . . . Slashing Weapon . | . . . Piercing Weapon . | . . . Special Melee Weapon 1 | . 1 . Unidentified Prototypes . | . . . Parts Lost 7 | . 7 . Power 2 | . 2 . Propulsion 2 | . 2 . Utility . | . . . Weapon 3 | . 3 . Highest Loss Streak 7 | . 7 . To Critical Strikes . | . . . Average Slot Usage (%) 84 | . 84 85 Engine 4 | . 5 . Treads 9 | . 12 . Leg 17 | . 14 28 Device 12 | . 12 14 Storage 14 | . 14 14 Ballistic Gun 20 | . 19 28 Special Weapon 3 | . 4 . Peak Build Rating 9 | 6 9 7 Average Rating 6 | 3 6 7 On Entrance 4 | . 6 7 Naked Turns . | . . . Heaviest Build 25 | 14 25 25 Greatest Support 40 | 40 40 20 Greatest Overweight (x) 3 | . 3 1 Average Overweight (x) . | . . 1 Largest Inventory Capacity 15 | 8 15 15 Average Capacity 11 | 7 11 15 Most Carried 10 | 5 10 10 Average Carried 7 | 2 7 9 Final Capacity 15 | 8 15 15 Final Carried 10 | 2 10 10 Class Distribution -------------------- 100% | Mutant Dominant Class ---------------- Mutant | -10/Materials Mutant | -10/Mines Resources | -11 -10 -10 ----------- Run | Yrd Mat Min Matter Collected 564 | 241 323 . Remotely . | . . . Salvage Created 551 | . 496 55 Parts 42 | . 42 . Haulers Intercepted 1 | . 1 . Recyclers Shooed 1 | . 1 . Parts Field Recycled . | . . . Retrieved Matter . | . . . Parts Self-Destructed . | . . . Prevented . | . . . Kills | -11 -10 -10 ------- Run | Yrd Mat Min Combat Hostiles Destroyed 14 | . 13 1 Guns 9 | . 8 1 AOE 5 | . 5 . Classes Destroyed 6 | . 6 . Builder 2 | . 2 . Hauler 1 | . 1 . Mechanic 1 | . 1 . Operator 1 | . 1 . Swarmer 2 | . 2 . Grunt 12 | . 11 1 Best Kill Streak 8 | . 8 1 Combat Bots Only 5 | . 5 1 Max Kills in Single Turn 4 | . 4 1 Gunslinging . | . . . Exploded 2 | . 2 . Melee . | . . . Uniques/NPCs Destroyed . | . . . Combat | -11 -10 -10 -------- Run | Yrd Mat Min Hostile Shots Fired 112 | . 99 13 Missed 31 | . 27 4 Damage Taken 1119 | . 1007 112 Core 251 | . 224 27 Absorbed by Shields . | . . . Core Remaining (%) 100 | 100 . . Volleys Fired 61 | . 55 6 Largest 2 | . 2 2 Hottest 120 | . 120 40 Shots Fired 101 | . 89 12 Gun 86 | . 74 12 Cannon . | . . . Launcher 10 | . 10 . Special 5 | . 5 . Kinetic 86 | . 74 12 Thermal 5 | . 5 . Explosive 10 | . 10 . Electromagnetic . | . . . Robot Hit Streak 8 | . 8 7 Robot Miss Streak 2 | . 2 2 Penetration Max . | . . . Secondary Targets 3 | . 2 1 Max Gunslinging Chain 1 | . 1 1 Shots Hit Robots 66 | . 56 10 Core Hits 37 | . 34 3 Critical Kills . | . . . Critical Parts Destroyed . | . . . Critical Strikes . | . . . Melee Attacks . | . . . Impact . | . . . Slashing . | . . . Piercing . | . . . Sneak Attacks . | . . . Combat Hostiles . | . . . Follow-up Attacks . | . . . Damage Inflicted 1397 | . 1277 120 Guns 773 | . 653 120 Cannons . | . . . Explosions 600 | . 600 . Melee . | . . . Ramming . | . . . Kinetic 773 | . 653 120 Thermal 24 | . 24 . Explosive 600 | . 600 . Electromagnetic . | . . . Impact . | . . . Slashing . | . . . Piercing . | . . . Highest Corruption 1 | . 1 1 Average Corruption 1 | . 1 1 Corruption Purged . | . . . Corruption Blocked . | . . . Effects 15 | . 11 4 Message Errors 4 | . 3 1 Matter Fused 5 | . 3 2 Heat Flow Errors 2 | . 2 . Energy Discharges 2 | . 1 1 Data Loss (minor) 1 | . 1 . Misfires 1 | . 1 . Overload Shots . | . . . Overflow Damage . | . . . Projectiles . | . . . Explosions . | . . . Melee . | . . . Knockbacks . | . . . Impact . | . . . Kinetic . | . . . Secondary . | . . . Self-Inflicted Damage 46 | . 46 . Shots 2 | . 2 . Rammed . | . . . Targets Rammed . | . . . Kicked . | . . . Crushed . | . . . Highest Temperature 262 | . 262 . Average Temperature 57 | . 57 . Received Heat Transfer 567 | . 501 66 Siege Activations . | . . . Robots Corrupted . | . . . Combat Hostiles . | . . . Parts Fried . | . . . Impact Corruptions . | . . . Robots Melted . | . . . Combat Hostiles . | . . . Parts Melted . | . . . Heat Transferred 50 | . 50 . Parts Sabotaged . | . . . Parts Stolen . | . . . Parts Stripped . | . . . Power Chain Reactions . | . . . Alert | -11 -10 -10 ------- Run | Yrd Mat Min Peak Influence 285 | . 285 64 Initial 34 | . . 34 Average 81 | . 97 34 Maximum Alert Level 1 | . 1 . Low Security (%) 91 | 100 88 100 Level 1 8 | . 11 . Level 2 . | . . . Level 3 . | . . . Level 4 . | . . . Level 5 . | . . . High Security . | . . . Max Security . | . . . Squads Dispatched 1 | . 1 . Investigation . | . . . Extermination . | . . . Reinforcement 1 | . 1 . Assault . | . . . Garrison . | . . . Intercept . | . . . Searches Triggered . | . . . Construction Impeded . | . . . Haulers Reinforced . | . . . Active Scanning Responses . | . . . Cargo Convoy Interrupts . | . . . Stealth | -11 -10 -10 --------- Run | Yrd Mat Min Distress Signals . | . . . Communications Jammed . | . . . Distress Signals . | . . . Times Spotted 24 | . 22 2 Peak Tracking Total 4 | . 4 2 Tactical Retreats 1 | . 1 . Traps | -11 -10 -10 ------- Run | Yrd Mat Min Traps Triggered 4 | . 4 . Indirectly . | . . . Trap Hack Attempts . | . . . Triggered . | . . . Disarmed . | . . . Reprogrammed . | . . . Reused . | . . . Traps Extracted . | . . . Installed . | . . . Triggered . | . . . Machines | -11 -10 -10 ---------- Run | Yrd Mat Min Machines Disabled 1 | . 1 . Max in Single Turn 1 | . 1 . Machines Repaired . | . . . Machines Dismantled . | . . . Machines Sabotaged . | . . . Overloaded Fab Kills . | . . . Hacking | -11 -10 -10 --------- Run | Yrd Mat Min Machines Accessed 8 | . 8 . Terminals 8 | . 8 . Fabricators . | . . . Repair Stations . | . . . Recycling Units . | . . . Scanalyzers . | . . . Garrison Access . | . . . Total Hacks 16 | . 16 . Successful 5 | . 5 . Failed 11 | . 11 . Catastrophic 2 | . 2 . Database Lockouts . | . . . Manual 9 | . 9 . Terminals 16 | . 16 . Fabricators . | . . . Repair Stations . | . . . Recycling Units . | . . . Scanalyzers . | . . . Garrison Access . | . . . Terminal Hacks 5 | . 5 . Robot Analysis 1 | . 1 . Prototype ID Bank 1 | . 1 . Branch Access Points 2 | . 2 . Emergency Access Points 1 | . 1 . Fabricator Hacks . | . . . Repair Station Hacks . | . . . Recycling Unit Hacks . | . . . Scanalyzer . | . . . Garrison Access Hacks . | . . . Unauthorized Hacks . | . . . Terminals . | . . . Fabricators . | . . . Repair Stations . | . . . Recycling Units . | . . . Scanalyzers . | . . . Garrison Access . | . . . Data Cores Recovered . | . . . Used . | . . . Hacking Detections 5 | . 5 . Full Trace Events . | . . . Feedback Events . | . . . Feedback Blocked . | . . . Robot Schematics Acquired . | . . . Robots Built . | . . . Authchips . | . . . Time . | . . . Total Robot Build Rating . | . . . Part Schematics Acquired . | . . . Parts Built . | . . . Authchips . | . . . Time . | . . . Total Part Build Rating . | . . . Parts Repaired . | . . . Time . | . . . Parts Recycled . | . . . Recycled Matter . | . . . Retrieved Matter . | . . . Retrieved Components . | . . . Parts Scanalyzed . | . . . Part Schematics Acquired . | . . . Parts Damaged . | . . . Bothacking | -11 -10 -10 ------------ Run | Yrd Mat Min Used RIF Installer . | . . . Robots Hacked . | . . . Non-combat . | . . . Combat . | . . . Robot Hacks Applied . | . . . Relay Couplers Released . | . . . Fabnet Peak Effective % . | . . . Robots Rewired . | . . . Allies Hacked . | . . . Hacks Repelled . | . . . Allies | -11 -10 -10 -------- Run | Yrd Mat Min Total Allies . | . . . Largest Group . | . . . Highest-Rated Group . | . . . Highest-Rated Ally . | . . . Total Orders . | . . . Ally Attacks . | . . . Total Damage . | . . . Kills . | . . . Allies Corrupted . | . . . Allies Melted . | . . . Intel | -11 -10 -10 ------- Run | Yrd Mat Min Robot Analysis Total 1 | . 1 . Derelict Logs Recovered 1 | . . 1 Drone Launches . | . . . Drone Recoveries . | . . . Exploration | -11 -10 -10 ------------- Run | Yrd Mat Min Turns Passed 1803 | 58 1365 380 Spaces Moved 882 | 44 667 171 Core 30 | 23 7 . Treads 316 | 21 295 . Legs 536 | . 365 171 Wheels . | . . . Hover . | . . . Flight . | . . . Fastest Speed 50 | 50 120 190 Average Speed 169 | 102 168 190 Slowest Speed 260 | 160 260 190 Overloaded Moves . | . . . Propulsion Burnouts . | . . . Robots Hopped . | . . . Cave-ins Triggered . | . . . Exploration Rate (%) 50 | 3 93 55 Regions Visited 2 Branch Regions 1 Pre-discovered Areas 1 | . . 1 Known Exits Taken 1 | . 1 . Unknown Exits Taken 1 | 1 . . Scrap Searched . | . . . Spaces Dug . | . . . Terrain Destroyed 24 | . 24 . Melee . | . . . Projectile 1 | . 1 . AOE 23 | . 23 . Terrain Rammed . | . . . Walls Destroyed . | . . . Machines Disabled . | . . . Actions | -11 -10 -10 --------- Run | Yrd Mat Min Total 1083 | 56 812 215 Wait 83 | . 49 34 Move 880 | 43 666 171 Hop . | . . . Pick Up 27 | 6 20 1 Fast Attach 3 | 2 1 . Attach 12 | 4 8 . Detach . | . . . Swap 11 | 1 8 2 Drop 6 | . 5 1 Fire 61 | . 55 6 Melee . | . . . Ram . | . . . Kick . | . . . Crush . | . . . Escape Stasis . | . . . Rewire . | . . . Trap . | . . . Miscellaneous . | . . . Route ------- -11/Scrapyard -10/Materials (discovered 5 exits: [*Mat x3] / *Min / [*Sub]) -10/Mines (discovered 1 exit: [*Mat]) History --------- Turn | Location | Event 7 | -11/Scrapyard | Discovered new exit (range 13) 59 | -11/Scrapyard | Entered Materials 264 | -10/Materials | Discovered new exit (range 9) 308 | -10/Materials | Build established: Mutant 355 | -10/Materials | Discovered new exit (range 12) 478 | -10/Materials | Discovered new exit (range 9) 546 | -10/Materials | Discovered new exit (range 13) 665 | -10/Materials | Core integrity fell below 50% 696 | -10/Materials | Core integrity fell below 20% 730 | -10/Materials | Lost 7 parts (2p2n3w) 809 | -10/Materials | Identified exit to Mines 1338 | -10/Materials | Discovered new exit (range 10) 1424 | -10/Materials | Entered Mines 1660 | -10/Mines | Learned location of Storage (-7) 1672 | -10/Mines | Received a Rocket Launcher from a helpful Derelict 1768 | -10/Mines | Discovered new exit (range 9) 1804 | -10/Mines | Destroyed by G-34 Mercenary with Small Laser Last Messages --------------- 01670_ N1-GN9(g): "Need to get rid of a swarm? Done. Need a big hole in the wall? Done." 01671_ N1-GN9(g): "Need a small hole in the wall? Leave that to the mining laser wimps, I say!" 01672_ N1-GN9(g): "Would you like a rocket launcher? I know I would if I were you, so I'm going to lend you mine." 01672_ N1-GN9(g) slips back into the shadows. 01683_ K<,PZMJEEZ 01768_ EXIT=FOUND 01794_ K-01 Serf destroyed. 01798_ R-06 Scavenger collects Wheel. 01803_ G-47 Trooper destroyed. 01803_ Switching to secondary target: G-34 Mercenary. 01803_ R-06 Scavenger collects Lgt. Ion Engine. Map ----- +----------------------------------------------------+ | ??#### ###### ####???????????????" ##???????? | | ???### ##### ####????????????? ##???????? | | ???## ##### ####??????????? ??????????? | | ???## #### ########### ???????????? | | ???### #### ############ ##???????????? | | ???### #### ##???????????? | | ????## #### ##???????????? | | ????## ##### ####### #####???????????? | | ????## ##### ####### #####???????????# | | ????## ##### ##???## ##?????????????## | | ????## #### ##???## #####??????????## | | ????## ###???## #####??????????# | | ????## ######???## ##????????### | | ????####### ######????##### ##??????##### | | ????####### ####??????##### ##?????##### | | ??????### ###?????????## ##????#### | | ??????## ##????????### ##??##### | | ??????## ###??????#### ######## | | ??????### ###??????### ######= ! # | | ??????#### ## ##??????## #### # | | ???????######### ###??????## # | | ????????######### #########?## | | ??????????????### ############# ## | | ???????????????## ###### ###### #### | | ???????????????## r #### ## ###### | | ???????????????## @ #### #### ###### | | ???????????????#########%g ### ##### ##### | | ???????????????######## ##### ####### ##??? | | ???????????????????### ##########?##### ##??? | | ??????????????????### ###?####????#######??? | | ??????????????????## ##?????????????####??? | | ??????????????## ###???????????????????? | | ??????????????## ###???????????????????? | | ??????????????### < ##????????????????????? | | ??????????????#### ###????????????????????? | | ???????????????####### ###????????????????## | | ????????????????###### ???????????????????## ## | | ???????????????????? ???????????????????## ## | | ??????????????????? #??????????????????????# | | ???????????????????######??????????????????????# | | ???????????????????######??????????????????????# | | ???????????????????????????????????????????????? | | ???????????????????????????????????????????????? | | ???????????????????????????????????????????????? | | ???????????????????????????????????????????????? | | ???????????????????????????????????????????????? | | ???????????????????????????????????????????????? | | ???????????????????????????????????????????????? | | ???????????????????????????????????????????????? | | ???????????????????????????????????????????????? | +----------------------------------------------------+ Best States ------------- Heat Dissipation 25 Energy Generation 14 Energy Capacity 250 Matter Stores 271 Matter Capacity 300 Sight Range 16 Terrain Scan Density 10 Evasion (%) 55 Recoil Reduction 2 Item Schematics ----------------- None Robot Schematics ------------------ None Fabricated ------------ Nothing Alien Tech Used ----------------- None Achievements -------------- None Challenges ------------ None Game ------ Seed PointTransmissionRegenerator Manual? 0 Play Time 00:13:27 Cumulative 35.9 hours Start 2024.09.02 @ 13:45:56 End 2024.09.02 @ 14:02:35 Sessions 1 Manual Loads 0 Difficulty Rogue Special Mode None Game No. 31 Rogue 27 Adventurer 4 Explorer 0 Win Type - Total 0 Types 0/0/0/0/0/0/0/0/0 Lore% 11 Gallery% 23 Achievement% 23 Wizard Run 0 Options --------- Layout 1 ASCII 0 Keyboard 0 Movement Mouse Keybinds 0 Fullscreen 1 Font 32/SmallcapsGlow Map View 50x35 Zoom Use 0% Tactical HUD 1 Map Filters NONE Filters NONE Steam 1 RUN: 83972f21-9f8d-4d73-b2c1-4f7856734092